[Event "Early-Titled-Tuesday-Blitz-April-16-2024"]
[Site "Chess.com"]
[Date "2024.04.16"]
[Round "7"]
[White "tarno17"]
[Black "mapleaff"]
[Result "1-0"]
[WhiteElo "2134"]
[BlackElo "2259"]
[TimeControl "180+1"]
[EndTime "9:21:38 PDT"]
[Termination "tarno17 won by resignation"]

1. e4 {[%clk 0:03:00.9]} 1... c5 {[%clk 0:02:59]} 2. Nf3 {[%clk 0:03:00.9]} 2...
Nc6 {[%clk 0:02:59.3]} 3. Bb5 {[%clk 0:03:01.5]} 3... e6 {[%clk 0:02:58.8]} 4.
O-O {[%clk 0:03:01.8]} 4... Nge7 {[%clk 0:02:58.8]} 5. c3 {[%clk 0:03:02.2]}
5... a6 {[%clk 0:02:59]} 6. Ba4 {[%clk 0:02:52.2]} 6... b5 {[%clk 0:02:57.1]} 7.
Bc2 {[%clk 0:02:52.7]} 7... g6 {[%clk 0:02:56.7]} 8. d4 {[%clk 0:02:35.2]} 8...
cxd4 {[%clk 0:02:55]} 9. Nxd4 {[%clk 0:02:21.6]} 9... Bg7 {[%clk 0:02:49.2]} 10.
Be3 {[%clk 0:02:21.6]} 10... O-O {[%clk 0:02:47.7]} 11. Nd2 {[%clk 0:02:15.6]}
11... Bb7 {[%clk 0:02:42.9]} 12. Re1 {[%clk 0:01:53.7]} 12... Qc7 {[%clk
0:02:28]} 13. N2b3 {[%clk 0:01:47.2]} 13... Rac8 {[%clk 0:02:21.9]} 14. Qd2
{[%clk 0:01:42]} 14... Ne5 {[%clk 0:02:15.2]} 15. Bf4 {[%clk 0:01:23.5]} 15...
Nc4 {[%clk 0:02:06.6]} 16. Bxc7 {[%clk 0:01:07.2]} 16... Nxd2 {[%clk 0:02:06.4]}
17. Bd6 {[%clk 0:00:52.5]} 17... Nxb3 {[%clk 0:02:05]} 18. Nxb3 {[%clk
0:00:49.9]} 18... Rfe8 {[%clk 0:01:54.9]} 19. Rad1 {[%clk 0:00:46.6]} 19... Bf8
{[%clk 0:00:46.1]} 20. Nc5 {[%clk 0:00:41.5]} 20... Ba8 {[%clk 0:00:41.7]} 21.
Nxd7 {[%clk 0:00:38.2]} 21... Red8 {[%clk 0:00:28.5]} 22. Nf6+ {[%clk 0:00:14]}
22... Kh8 {[%clk 0:00:20.8]} 23. Be5 {[%clk 0:00:13.2]} 23... Bg7 {[%clk
0:00:21.1]} 24. Ng4 {[%clk 0:00:09.5]} 24... h5 {[%clk 0:00:20]} 25. Bxg7+
{[%clk 0:00:08.4]} 25... Kxg7 {[%clk 0:00:20.9]} 26. Ne5 {[%clk 0:00:08.9]}
26... f6 {[%clk 0:00:19]} 27. Nf3 {[%clk 0:00:07.6]} 27... Nc6 {[%clk
0:00:17.3]} 28. h4 {[%clk 0:00:05.1]} 28... Na5 {[%clk 0:00:16.6]} 29. Nd4
{[%clk 0:00:04.7]} 29... Kf7 {[%clk 0:00:15.5]} 30. e5 {[%clk 0:00:03.3]} 30...
f5 {[%clk 0:00:09.7]} 31. Bb3 {[%clk 0:00:03.7]} 31... Nxb3 {[%clk 0:00:09.2]}
32. Nxb3 {[%clk 0:00:04.6]} 32... Bd5 {[%clk 0:00:08.6]} 33. f3 {[%clk 0:00:04]}
33... Bc4 {[%clk 0:00:08.1]} 34. Kf2 {[%clk 0:00:04.1]} 34... Rxd1 {[%clk
0:00:08.1]} 35. Rxd1 {[%clk 0:00:04.5]} 35... Rc5 {[%clk 0:00:08.9]} 36. f4
{[%clk 0:00:04.7]} 36... Rc7 {[%clk 0:00:08.5]} 37. Rd6 {[%clk 0:00:04.8]} 37...
Bxb3 {[%clk 0:00:08.2]} 38. axb3 {[%clk 0:00:05]} 38... Ra7 {[%clk 0:00:09.1]}
39. Rb6 {[%clk 0:00:04.6]} 39... Ke7 {[%clk 0:00:08.5]} 40. Ke3 {[%clk
0:00:04.9]} 40... Kd7 {[%clk 0:00:09.2]} 41. Rd6+ {[%clk 0:00:05]} 41... Kc7
{[%clk 0:00:09.2]} 42. Rxe6 {[%clk 0:00:05.3]} 42... a5 {[%clk 0:00:09.8]} 43.
Re7+ {[%clk 0:00:04.3]} 43... Kb6 {[%clk 0:00:09.6]} 44. Rxa7 {[%clk 0:00:04.8]}
44... Kxa7 {[%clk 0:00:10.5]} 45. e6 {[%clk 0:00:04.2]} 45... Kb6 {[%clk
0:00:10.5]} 46. e7 {[%clk 0:00:04.5]} 46... a4 {[%clk 0:00:11.4]} 47. e8=Q
{[%clk 0:00:04.6]} 47... axb3 {[%clk 0:00:11.6]} 48. Qe6+ {[%clk 0:00:04.7]}
48... Ka5 {[%clk 0:00:12.5]} 49. Qxb3 {[%clk 0:00:05.3]} 49... b4 {[%clk
0:00:12.5]} 50. Qxb4+ {[%clk 0:00:05.5]} 50... Ka6 {[%clk 0:00:13.4]} 51. Kd4
{[%clk 0:00:06]} 51... Ka7 {[%clk 0:00:14.3]} 52. Kc5 {[%clk 0:00:06.5]} 1-0

[Event "Early-Titled-Tuesday-Blitz-April-16-2024"]
[Site "Chess.com"]
[Date "2024.04.16"]
[Round "7"]
[White "NajdorfPlayerc5"]
[Black "TitarovVasiliYouTube"]
[Result "1-0"]
[WhiteElo "2421"]
[BlackElo "2602"]
[TimeControl "180+1"]
[EndTime "9:21:42 PDT"]
[Termination "NajdorfPlayerc5 won by checkmate"]

1. e4 {[%clk 0:03:00.9]} 1... Nf6 {[%clk 0:02:58.6]} 2. e5 {[%clk 0:02:59.4]}
2... Nd5 {[%clk 0:02:59.1]} 3. c4 {[%clk 0:02:59.4]} 3... Nb6 {[%clk 0:02:59.3]}
4. d4 {[%clk 0:03:00.1]} 4... d6 {[%clk 0:02:59.9]} 5. f4 {[%clk 0:03:00.7]}
5... dxe5 {[%clk 0:03:00.3]} 6. fxe5 {[%clk 0:03:01.6]} 6... Bf5 {[%clk
0:03:01]} 7. Nf3 {[%clk 0:02:59.1]} 7... e6 {[%clk 0:03:01.5]} 8. Nc3 {[%clk
0:02:59.5]} 8... Nc6 {[%clk 0:03:02.1]} 9. Be3 {[%clk 0:02:56.5]} 9... Be7
{[%clk 0:03:02.2]} 10. Be2 {[%clk 0:02:55.6]} 10... O-O {[%clk 0:03:02.5]} 11.
O-O {[%clk 0:02:56.3]} 11... f6 {[%clk 0:03:03.1]} 12. exf6 {[%clk 0:02:57.2]}
12... Bxf6 {[%clk 0:03:03.9]} 13. Qd2 {[%clk 0:02:55.6]} 13... Qe7 {[%clk
0:03:01.6]} 14. Rad1 {[%clk 0:02:52.8]} 14... Rad8 {[%clk 0:03:01]} 15. Kh1
{[%clk 0:02:53.1]} 15... Bg4 {[%clk 0:02:40.3]} 16. c5 {[%clk 0:02:23.8]} 16...
Nd5 {[%clk 0:02:36.4]} 17. Nxd5 {[%clk 0:02:22.7]} 17... exd5 {[%clk 0:02:32]}
18. Rde1 {[%clk 0:02:18]} 18... Qd7 {[%clk 0:02:22]} 19. Bb5 {[%clk 0:02:14.3]}
19... Bxf3 {[%clk 0:01:38]} 20. Rxf3 {[%clk 0:02:12.3]} 20... a6 {[%clk
0:01:37.5]} 21. Ba4 {[%clk 0:02:09.8]} 21... Rde8 {[%clk 0:01:31.1]} 22. Ref1
{[%clk 0:02:06.1]} 22... Re4 {[%clk 0:01:28.1]} 23. Bc2 {[%clk 0:01:58.2]} 23...
Re7 {[%clk 0:01:21.1]} 24. Qd3 {[%clk 0:01:55.1]} 24... Re4 {[%clk 0:01:17.3]}
25. Qb3 {[%clk 0:01:25.4]} 25... Rxd4 {[%clk 0:01:08.8]} 26. Bxd4 {[%clk
0:01:18]} 26... Nxd4 {[%clk 0:01:09.7]} 27. Qd3 {[%clk 0:01:17.2]} 27... Nxf3
{[%clk 0:01:05.6]} 28. Qxh7+ {[%clk 0:01:14.8]} 28... Kf7 {[%clk 0:01:06.2]} 29.
Rxf3 {[%clk 0:00:56.3]} 29... Qg4 {[%clk 0:00:58.6]} 30. h3 {[%clk 0:00:46.4]}
30... Qg5 {[%clk 0:00:58.5]} 31. Qf5 {[%clk 0:00:25]} 31... Qxf5 {[%clk
0:00:56.2]} 32. Bxf5 {[%clk 0:00:25.4]} 32... Rb8 {[%clk 0:00:32.5]} 33. b4
{[%clk 0:00:20.3]} 33... Ke7 {[%clk 0:00:08.3]} 34. g4 {[%clk 0:00:17.3]} 34...
b6 {[%clk 0:00:05.4]} 35. Re3+ {[%clk 0:00:17.2]} 35... Kd8 {[%clk 0:00:05.6]}
36. c6 {[%clk 0:00:15.7]} 36... a5 {[%clk 0:00:03]} 37. Bg6 {[%clk 0:00:10]}
37... Be7 {[%clk 0:00:02.7]} 38. Rd3 {[%clk 0:00:10.3]} 38... axb4 {[%clk
0:00:02.6]} 39. Rxd5+ {[%clk 0:00:10.5]} 39... Bd6 {[%clk 0:00:03.5]} 40. Rd3
{[%clk 0:00:05.8]} 40... Ra8 {[%clk 0:00:03.8]} 41. Re3 {[%clk 0:00:05.4]} 41...
Be7 {[%clk 0:00:03.3]} 42. Rd3+ {[%clk 0:00:05.4]} 42... Bd6 {[%clk 0:00:03.3]}
43. Re3 {[%clk 0:00:06.1]} 43... Be7 {[%clk 0:00:03.1]} 44. Re2 {[%clk
0:00:06.9]} 44... Bd6 {[%clk 0:00:01.8]} 45. Re8# {[%clk 0:00:05.8]} 1-0

[Event "Early-Titled-Tuesday-Blitz-April-16-2024"]
[Site "Chess.com"]
[Date "2024.04.16"]
[Round "7"]
[White "MaiqMaster"]
[Black "Squirlolz"]
[Result "0-1"]
[WhiteElo "2426"]
[BlackElo "2581"]
[TimeControl "180+1"]
[EndTime "9:21:46 PDT"]
[Termination "Squirlolz won by resignation"]

1. d4 {[%clk 0:03:00.9]} 1... c5 {[%clk 0:02:56.7]} 2. e4 {[%clk 0:02:56.7]}
2... cxd4 {[%clk 0:02:56]} 3. c3 {[%clk 0:02:56.3]} 3... dxc3 {[%clk 0:02:56.1]}
4. Nxc3 {[%clk 0:02:56.3]} 4... g6 {[%clk 0:02:49.8]} 5. Nf3 {[%clk 0:02:55.6]}
5... Bg7 {[%clk 0:02:49.8]} 6. Bc4 {[%clk 0:02:54.4]} 6... Nh6 {[%clk
0:02:25.9]} 7. O-O {[%clk 0:02:43.5]} 7... O-O {[%clk 0:02:25.8]} 8. Bg5 {[%clk
0:02:37.6]} 8... d6 {[%clk 0:02:20.8]} 9. h3 {[%clk 0:02:31.5]} 9... Kh8 {[%clk
0:02:19]} 10. Qd2 {[%clk 0:02:23.3]} 10... Ng8 {[%clk 0:02:18.9]} 11. Rfd1
{[%clk 0:02:15.6]} 11... Be6 {[%clk 0:02:09.6]} 12. Nd5 {[%clk 0:02:09.5]} 12...
Nd7 {[%clk 0:02:01.4]} 13. Nxe7 {[%clk 0:01:59]} 13... Nxe7 {[%clk 0:01:33.9]}
14. Qxd6 {[%clk 0:01:54.9]} 14... Nf6 {[%clk 0:01:34.2]} 15. Bxe6 {[%clk
0:01:45.2]} 15... Qxd6 {[%clk 0:01:32.7]} 16. Rxd6 {[%clk 0:01:43.5]} 16... fxe6
{[%clk 0:01:33.1]} 17. Rxe6 {[%clk 0:01:34.8]} 17... Nc6 {[%clk 0:01:32.8]} 18.
Rd1 {[%clk 0:01:25.2]} 18... Rfe8 {[%clk 0:01:17.3]} 19. Rxf6 {[%clk 0:01:21.8]}
19... Bxf6 {[%clk 0:00:48.5]} 20. Bxf6+ {[%clk 0:01:22.7]} 20... Kg8 {[%clk
0:00:49.2]} 21. e5 {[%clk 0:01:21.9]} 21... Rf8 {[%clk 0:00:28.8]} 22. Ng5
{[%clk 0:01:10]} 22... h6 {[%clk 0:00:28.5]} 23. Ne6 {[%clk 0:00:36.5]} 23...
Rf7 {[%clk 0:00:24.3]} 24. h4 {[%clk 0:00:20.6]} 24... Re8 {[%clk 0:00:22.7]}
25. Nf4 {[%clk 0:00:19.3]} 25... Nxe5 {[%clk 0:00:16.8]} 26. Bxe5 {[%clk
0:00:20.2]} 26... Rxe5 {[%clk 0:00:17.1]} 27. Nxg6 {[%clk 0:00:20.9]} 27... Re2
{[%clk 0:00:16.7]} 28. Rd8+ {[%clk 0:00:17.5]} 28... Kg7 {[%clk 0:00:17]} 29. h5
{[%clk 0:00:09.8]} 29... Rxb2 {[%clk 0:00:17]} 30. f3 {[%clk 0:00:09]} 30...
Rxa2 {[%clk 0:00:17.2]} 31. Ne5 {[%clk 0:00:07.5]} 31... Re7 {[%clk 0:00:16.7]}
32. Ng4 {[%clk 0:00:05.2]} 32... Ra5 {[%clk 0:00:13.6]} 33. Rd6 {[%clk
0:00:02.4]} 33... Rxh5 {[%clk 0:00:13.7]} 34. Nf6 {[%clk 0:00:02.6]} 34... Rhe5
{[%clk 0:00:11.5]} 35. Ng4 {[%clk 0:00:01.8]} 35... R5e6 {[%clk 0:00:11.6]} 36.
Rd5 {[%clk 0:00:02.2]} 36... h5 {[%clk 0:00:11.2]} 37. Rxh5 {[%clk 0:00:02.4]}
37... b6 {[%clk 0:00:09.9]} 38. Rd5 {[%clk 0:00:02.3]} 38... a5 {[%clk
0:00:10.1]} 39. Nf2 {[%clk 0:00:02.2]} 39... a4 {[%clk 0:00:10.7]} 40. Nd3
{[%clk 0:00:02.4]} 40... a3 {[%clk 0:00:10.3]} 41. Nb4 {[%clk 0:00:02.8]} 41...
Re1+ {[%clk 0:00:06.7]} 42. Kh2 {[%clk 0:00:02.6]} 42... R1e2 {[%clk 0:00:07.6]}
43. Rb5 {[%clk 0:00:02.3]} 43... a2 {[%clk 0:00:07]} 44. Nxa2 {[%clk 0:00:03]}
44... Rxa2 {[%clk 0:00:07.3]} 45. Rxb6 {[%clk 0:00:03.9]} 45... Ree2 {[%clk
0:00:06.1]} 46. Rb7+ {[%clk 0:00:04.7]} 46... Kf6 {[%clk 0:00:05.6]} 47. Rb6+
{[%clk 0:00:05.4]} 47... Ke5 {[%clk 0:00:06.1]} 48. Rb5+ {[%clk 0:00:06]} 48...
Kf6 {[%clk 0:00:05.6]} 49. Rb6+ {[%clk 0:00:06.4]} 49... Re6 {[%clk 0:00:05.7]}
50. Rb5 {[%clk 0:00:06.7]} 50... Kf7 {[%clk 0:00:05.9]} 51. Kg3 {[%clk
0:00:06.9]} 51... Rg6+ {[%clk 0:00:05.5]} 52. Kf4 {[%clk 0:00:07.6]} 52... Raxg2
{[%clk 0:00:05.1]} 53. Kf5 {[%clk 0:00:07.7]} 53... R2g5+ {[%clk 0:00:04.8]} 54.
Ke4 {[%clk 0:00:08.3]} 54... Rxb5 {[%clk 0:00:05.7]} 0-1

[Event "Early-Titled-Tuesday-Blitz-April-16-2024"]
[Site "Chess.com"]
[Date "2024.04.16"]
[Round "7"]
[White "Devil_Sun"]
[Black "Eloist"]
[Result "1-0"]
[WhiteElo "2629"]
[BlackElo "2487"]
[TimeControl "180+1"]
[EndTime "9:21:47 PDT"]
[Termination "Devil_Sun won on time"]

1. d4 {[%clk 0:02:57.9]} 1... e6 {[%clk 0:02:59.9]} 2. c4 {[%clk 0:02:57.4]}
2... Nf6 {[%clk 0:03:00]} 3. Nf3 {[%clk 0:02:56.2]} 3... b6 {[%clk 0:02:59.8]}
4. g3 {[%clk 0:02:54.8]} 4... Bb7 {[%clk 0:03:00]} 5. Bg2 {[%clk 0:02:54.7]}
5... Be7 {[%clk 0:03:00.1]} 6. O-O {[%clk 0:02:40.7]} 6... O-O {[%clk
0:02:59.7]} 7. Nc3 {[%clk 0:02:41.4]} 7... Ne4 {[%clk 0:02:59.6]} 8. Bd2 {[%clk
0:02:38]} 8... f5 {[%clk 0:02:59]} 9. d5 {[%clk 0:02:27.5]} 9... Bf6 {[%clk
0:02:56.1]} 10. Rc1 {[%clk 0:02:24.6]} 10... Na6 {[%clk 0:02:54.6]} 11. Qc2
{[%clk 0:02:19.3]} 11... Nac5 {[%clk 0:02:49.6]} 12. Rfd1 {[%clk 0:02:16.3]}
12... a5 {[%clk 0:02:41.6]} 13. Be1 {[%clk 0:01:41.7]} 13... Qe7 {[%clk
0:02:38.9]} 14. Nd4 {[%clk 0:01:35.6]} 14... Nd6 {[%clk 0:02:17]} 15. Ncb5
{[%clk 0:01:25.7]} 15... Nxb5 {[%clk 0:01:57.3]} 16. Nxb5 {[%clk 0:01:23.6]}
16... d6 {[%clk 0:01:42.9]} 17. b3 {[%clk 0:01:09]} 17... e5 {[%clk 0:01:35.6]}
18. a3 {[%clk 0:00:53.6]} 18... a4 {[%clk 0:01:32]} 19. b4 {[%clk 0:00:49.5]}
19... Nb3 {[%clk 0:01:31.6]} 20. Rb1 {[%clk 0:00:50]} 20... Bc8 {[%clk
0:01:18.1]} 21. e3 {[%clk 0:00:47.5]} 21... f4 {[%clk 0:00:58.8]} 22. Nc3 {[%clk
0:00:24.5]} 22... Bg4 {[%clk 0:00:45.4]} 23. f3 {[%clk 0:00:21.8]} 23... Bd7
{[%clk 0:00:42.2]} 24. e4 {[%clk 0:00:19.1]} 24... Nd4 {[%clk 0:00:39.7]} 25.
Qd3 {[%clk 0:00:18.9]} 25... h5 {[%clk 0:00:26.4]} 26. Ne2 {[%clk 0:00:13.9]}
26... Nxe2+ {[%clk 0:00:22.7]} 27. Qxe2 {[%clk 0:00:14.8]} 27... g5 {[%clk
0:00:21.5]} 28. g4 {[%clk 0:00:12.2]} 28... hxg4 {[%clk 0:00:20.6]} 29. fxg4
{[%clk 0:00:13.1]} 29... Kg7 {[%clk 0:00:21]} 30. h3 {[%clk 0:00:13.4]} 30...
Rh8 {[%clk 0:00:20.5]} 31. Rbc1 {[%clk 0:00:12.6]} 31... Rac8 {[%clk 0:00:18.5]}
32. Bf2 {[%clk 0:00:12.5]} 32... Kg6 {[%clk 0:00:17.9]} 33. c5 {[%clk
0:00:12.5]} 33... bxc5 {[%clk 0:00:16.4]} 34. bxc5 {[%clk 0:00:13.4]} 34... Rb8
{[%clk 0:00:15.2]} 35. cxd6 {[%clk 0:00:12.9]} 35... cxd6 {[%clk 0:00:14.2]} 36.
Rc7 {[%clk 0:00:12.6]} 36... Qd8 {[%clk 0:00:12.8]} 37. Rdc1 {[%clk 0:00:10.9]}
37... Rb1 {[%clk 0:00:11.6]} 38. Qc4 {[%clk 0:00:08.4]} 38... Rxc1+ {[%clk
0:00:10.7]} 39. Qxc1 {[%clk 0:00:09.3]} 39... Bb5 {[%clk 0:00:09.8]} 40. Bb6
{[%clk 0:00:08.7]} 40... Qb8 {[%clk 0:00:09.6]} 41. Ba5 {[%clk 0:00:07.9]} 41...
Re8 {[%clk 0:00:07.9]} 42. Bb4 {[%clk 0:00:07.4]} 42... Re7 {[%clk 0:00:06.5]}
43. Bxd6 {[%clk 0:00:06.7]} 43... Qb6+ {[%clk 0:00:05.3]} 44. Qc5 {[%clk
0:00:06.9]} 44... Qxc5+ {[%clk 0:00:05.2]} 45. Rxc5 {[%clk 0:00:06.8]} 45... Rd7
{[%clk 0:00:02.9]} 46. Rxb5 {[%clk 0:00:05.7]} 46... Rxd6 {[%clk 0:00:02.7]} 47.
Ra5 {[%clk 0:00:06.3]} 1-0

[Event "Early-Titled-Tuesday-Blitz-April-16-2024"]
[Site "Chess.com"]
[Date "2024.04.16"]
[Round "7"]
[White "abc_xyz4744"]
[Black "aljado"]
[Result "1-0"]
[WhiteElo "2397"]
[BlackElo "2148"]
[TimeControl "180+1"]
[EndTime "9:21:47 PDT"]
[Termination "abc_xyz4744 won on time"]

1. e4 {[%clk 0:03:00.2]} 1... c5 {[%clk 0:02:59.1]} 2. Nf3 {[%clk 0:02:59.7]}
2... e6 {[%clk 0:02:59]} 3. d4 {[%clk 0:03:00.2]} 3... cxd4 {[%clk 0:02:59.2]}
4. Nxd4 {[%clk 0:03:01.1]} 4... Bc5 {[%clk 0:02:59.1]} 5. Nc3 {[%clk 0:02:53.8]}
5... a6 {[%clk 0:02:57.6]} 6. Be3 {[%clk 0:02:47.7]} 6... Bb6 {[%clk 0:02:50.6]}
7. Be2 {[%clk 0:02:45]} 7... Ne7 {[%clk 0:02:50.1]} 8. f4 {[%clk 0:02:26.8]}
8... d5 {[%clk 0:02:36.4]} 9. e5 {[%clk 0:01:51.4]} 9... O-O {[%clk 0:02:35]}
10. Bd3 {[%clk 0:01:45.1]} 10... Nbc6 {[%clk 0:02:32.7]} 11. Nce2 {[%clk
0:01:43.8]} 11... Nxd4 {[%clk 0:02:28.8]} 12. Nxd4 {[%clk 0:01:44.7]} 12... Nc6
{[%clk 0:02:26.2]} 13. c3 {[%clk 0:01:43.8]} 13... Nxd4 {[%clk 0:02:18.9]} 14.
cxd4 {[%clk 0:01:40.4]} 14... Ba5+ {[%clk 0:02:16.9]} 15. Bd2 {[%clk 0:01:31.8]}
15... Bxd2+ {[%clk 0:01:52.4]} 16. Qxd2 {[%clk 0:01:32.7]} 16... f6 {[%clk
0:01:49.5]} 17. O-O {[%clk 0:01:27]} 17... Bd7 {[%clk 0:01:45.1]} 18. Qe2 {[%clk
0:01:15.5]} 18... f5 {[%clk 0:01:44.5]} 19. Rac1 {[%clk 0:01:08]} 19... Qb6
{[%clk 0:01:41.5]} 20. Qf2 {[%clk 0:01:04.5]} 20... Rac8 {[%clk 0:01:33.2]} 21.
Rfd1 {[%clk 0:00:57.8]} 21... Rc6 {[%clk 0:01:22.5]} 22. Rc5 {[%clk 0:00:53.6]}
22... Rxc5 {[%clk 0:01:17.3]} 23. dxc5 {[%clk 0:00:52.9]} 23... Qb4 {[%clk
0:01:15.7]} 24. a3 {[%clk 0:00:51.5]} 24... Qb3 {[%clk 0:01:11.1]} 25. Bc2
{[%clk 0:00:24.5]} 25... Qc4 {[%clk 0:01:04.1]} 26. b4 {[%clk 0:00:23.4]} 26...
Qc3 {[%clk 0:00:48.1]} 27. Rd3 {[%clk 0:00:19.1]} 27... Qa1+ {[%clk 0:00:40.1]}
28. Bd1 {[%clk 0:00:18]} 28... Ba4 {[%clk 0:00:35]} 29. Qe2 {[%clk 0:00:14.4]}
29... Bxd1 {[%clk 0:00:29.5]} 30. Qxd1 {[%clk 0:00:13.2]} 30... Qb2 {[%clk
0:00:26.6]} 31. h3 {[%clk 0:00:13.2]} 31... Rc8 {[%clk 0:00:23.8]} 32. Qd2
{[%clk 0:00:13.3]} 32... Qxd2 {[%clk 0:00:20.2]} 33. Rxd2 {[%clk 0:00:14.2]}
33... Kf7 {[%clk 0:00:19.6]} 34. Kf2 {[%clk 0:00:13.8]} 34... Ke7 {[%clk
0:00:19.1]} 35. Ke3 {[%clk 0:00:13.9]} 35... Kd7 {[%clk 0:00:19.1]} 36. Kd4
{[%clk 0:00:14.2]} 36... Kc6 {[%clk 0:00:18.9]} 37. a4 {[%clk 0:00:14.8]} 37...
b5 {[%clk 0:00:12.8]} 38. axb5+ {[%clk 0:00:14.4]} 38... Kxb5 {[%clk 0:00:12.3]}
39. Rb2 {[%clk 0:00:12.2]} 39... Rb8 {[%clk 0:00:10.5]} 40. g4 {[%clk 0:00:11]}
40... Kc6 {[%clk 0:00:08.4]} 41. Kc3 {[%clk 0:00:10.2]} 41... g6 {[%clk
0:00:06.8]} 42. Ra2 {[%clk 0:00:10.1]} 42... Ra8 {[%clk 0:00:04.1]} 43. Ra5
{[%clk 0:00:10.4]} 43... Kc7 {[%clk 0:00:02.8]} 44. b5 {[%clk 0:00:10.5]} 44...
Kb7 {[%clk 0:00:01.2]} 45. b6 {[%clk 0:00:10.4]} 1-0

[Event "Early-Titled-Tuesday-Blitz-April-16-2024"]
[Site "Chess.com"]
[Date "2024.04.16"]
[Round "7"]
[White "ferdipy"]
[Black "amanjazu"]
[Result "1-0"]
[WhiteElo "2307"]
[BlackElo "2522"]
[TimeControl "180+1"]
[EndTime "9:21:48 PDT"]
[Termination "ferdipy won on time"]

1. e4 {[%clk 0:03:00.9]} 1... Nf6 {[%clk 0:02:59.7]} 2. e5 {[%clk 0:02:58.9]}
2... Nd5 {[%clk 0:03:00.1]} 3. d4 {[%clk 0:02:59.6]} 3... d6 {[%clk 0:03:00.3]}
4. Nf3 {[%clk 0:03:00.5]} 4... g6 {[%clk 0:03:00.2]} 5. Be2 {[%clk 0:03:01.4]}
5... Bg7 {[%clk 0:03:00.3]} 6. O-O {[%clk 0:03:02.1]} 6... O-O {[%clk
0:03:00.7]} 7. exd6 {[%clk 0:02:59]} 7... cxd6 {[%clk 0:03:00.6]} 8. c4 {[%clk
0:02:58.5]} 8... Nb6 {[%clk 0:03:00.7]} 9. b3 {[%clk 0:02:59.1]} 9... Bg4 {[%clk
0:02:57.9]} 10. Bb2 {[%clk 0:02:59.2]} 10... Nc6 {[%clk 0:02:56.9]} 11. Na3
{[%clk 0:02:57.7]} 11... d5 {[%clk 0:02:48.2]} 12. c5 {[%clk 0:02:53.7]} 12...
Nc8 {[%clk 0:02:48.5]} 13. Nc2 {[%clk 0:02:53.1]} 13... e6 {[%clk 0:01:36.3]}
14. b4 {[%clk 0:02:52.4]} 14... a6 {[%clk 0:01:36.3]} 15. a4 {[%clk 0:02:52.3]}
15... N8e7 {[%clk 0:01:34.2]} 16. b5 {[%clk 0:02:52.4]} 16... axb5 {[%clk
0:01:35.1]} 17. axb5 {[%clk 0:02:53.3]} 17... Na5 {[%clk 0:01:35.1]} 18. Ne3
{[%clk 0:02:49.2]} 18... Bxf3 {[%clk 0:01:32.2]} 19. Bxf3 {[%clk 0:02:46.5]}
19... Nf5 {[%clk 0:01:31.8]} 20. Nxf5 {[%clk 0:02:38.1]} 20... gxf5 {[%clk
0:01:32.7]} 21. Be2 {[%clk 0:02:37.4]} 21... Qh4 {[%clk 0:01:03]} 22. g3 {[%clk
0:02:34.1]} 22... Qf6 {[%clk 0:01:00.8]} 23. Bc3 {[%clk 0:02:15.3]} 23... Nc4
{[%clk 0:00:55.5]} 24. Rxa8 {[%clk 0:02:15.6]} 24... Rxa8 {[%clk 0:00:54.5]} 25.
Bxc4 {[%clk 0:02:16.5]} 25... dxc4 {[%clk 0:00:54.5]} 26. Qe2 {[%clk 0:02:14]}
26... Ra4 {[%clk 0:00:52.4]} 27. Rc1 {[%clk 0:01:52.8]} 27... Qd8 {[%clk
0:00:48]} 28. Qb2 {[%clk 0:01:44.1]} 28... Qd5 {[%clk 0:00:39.7]} 29. Qc2 {[%clk
0:01:30.2]} 29... Ra8 {[%clk 0:00:32.8]} 30. Rd1 {[%clk 0:01:30.8]} 30... h5
{[%clk 0:00:31.4]} 31. Qe2 {[%clk 0:01:29.1]} 31... f4 {[%clk 0:00:25.4]} 32.
gxf4 {[%clk 0:01:26.3]} 32... Kh7 {[%clk 0:00:25.4]} 33. f3 {[%clk 0:01:19]}
33... Rg8 {[%clk 0:00:24.6]} 34. Kf2 {[%clk 0:01:19.7]} 34... Bf6 {[%clk
0:00:24.1]} 35. Qe4+ {[%clk 0:01:18.9]} 35... Kh6 {[%clk 0:00:23]} 36. Qxd5
{[%clk 0:01:11.1]} 36... exd5 {[%clk 0:00:23.9]} 37. Ra1 {[%clk 0:01:01.8]}
37... Bh4+ {[%clk 0:00:23.3]} 38. Ke3 {[%clk 0:01:00.4]} 38... Re8+ {[%clk
0:00:22.5]} 39. Kd2 {[%clk 0:00:59.9]} 39... Bf2 {[%clk 0:00:17.4]} 40. Ra7
{[%clk 0:00:56.6]} 40... Be3+ {[%clk 0:00:17.5]} 41. Kc2 {[%clk 0:00:57.1]}
41... Rb8 {[%clk 0:00:13.8]} 42. Bd2 {[%clk 0:00:45.6]} 42... Bxd4 {[%clk
0:00:13.6]} 43. f5+ {[%clk 0:00:43]} 43... Kg7 {[%clk 0:00:13.4]} 44. Bf4 {[%clk
0:00:42.2]} 44... Rc8 {[%clk 0:00:13.6]} 45. Rxb7 {[%clk 0:00:38.2]} 45... Rxc5
{[%clk 0:00:13.1]} 46. Bd6 {[%clk 0:00:26.5]} 46... Rc8 {[%clk 0:00:13.2]} 47.
Rd7 {[%clk 0:00:26.5]} 47... Bf6 {[%clk 0:00:10.5]} 48. Bf4 {[%clk 0:00:24.6]}
48... d4 {[%clk 0:00:10.3]} 49. b6 {[%clk 0:00:24.5]} 49... d3+ {[%clk
0:00:09.9]} 50. Kc1 {[%clk 0:00:25]} 50... c3 {[%clk 0:00:01.8]} 51. Rxd3 {[%clk
0:00:23.7]} 1-0